[Event "Skol-SM 2021, grupp A"]
[Site "Helsingborg Arena, Mellersta Stenbocksgatan 14, Helsingborg, Sweden"]
[Date "2021.10.10"]
[Round "7.1"]
[White "Joensson, Oscar"]
[Black "Torngren, Gustav"]
[Result "1/2-1/2"]
[TimeControl "45 minutes + 10 seconds per move from move one."]
[BlackTitle "FM"]
[WhiteFideId "1729977"]
[BlackFideId "1728970"]
[WhiteElo "1741"]
[BlackElo "2084"]

1. d4 {[%clk 00:45:19]} b6 {[%clk 00:45:14]} {[%emt 00:00:07]} 2. c4 {[%clk
00:45:26]} {[%emt 00:00:03]} Bb7 {[%clk 00:45:21]} {[%emt 00:00:03]} 3. Nc3
{[%clk 00:45:33]} {[%emt 00:00:02]} e6 {[%clk 00:45:26]} {[%emt 00:00:05]} 4.
e4 {[%clk 00:45:36]} {[%emt 00:00:07]} Bb4 {[%clk 00:45:28]} {[%emt 00:00:07]}
5. Qc2 {[%clk 00:45:34]} {[%emt 00:00:12]} Qh4 {[%clk 00:43:08]} {[%emt
00:02:31]} 6. Bd3 {[%clk 00:41:32]} {[%emt 00:04:12]} f5 {[%clk 00:43:15]}
{[%emt 00:00:03]} 7. g3 {[%clk 00:32:23]} {[%emt 00:09:18]} Qh5 {[%clk
00:42:40]} {[%emt 00:00:45]} 8. Be2 {[%clk 00:27:11]} {[%emt 00:05:23]} Qf7
{[%clk 00:40:37]} {[%emt 00:02:12]} 9. Bf3 {[%clk 00:27:19]} {[%emt 00:00:02]}
Nc6 {[%clk 00:34:39]} {[%emt 00:06:08]} 10. Nge2 {[%clk 00:21:37]} {[%emt
00:05:52]} fxe4 {[%clk 00:34:04]} {[%emt 00:00:45]} 11. Bxe4 {[%clk 00:20:54]}
{[%emt 00:00:53]} Nf6 {[%clk 00:34:05]} {[%emt 00:00:09]} 12. d5 {[%clk
00:17:48]} {[%emt 00:03:16]} Nxe4 {[%clk 00:30:42]} {[%emt 00:03:33]} 13. Qxe4
{[%clk 00:17:55]} {[%emt 00:00:03]} O-O {[%clk 00:30:22]} {[%emt 00:00:30]} 14.
O-O {[%clk 00:17:21]} {[%emt 00:00:44]} exd5 {[%clk 00:17:42]} {[%emt
00:12:51]} 15. Qxd5 {[%clk 00:16:32]} {[%emt 00:00:59]} Nd8 {[%clk 00:15:04]}
{[%emt 00:02:48]} 16. Qxf7+ {[%clk 00:15:48]} {[%emt 00:00:54]} Nxf7 {[%clk
00:15:12]} {[%emt 00:00:02]} 17. Nd5 {[%clk 00:11:38]} {[%emt 00:04:20]} Bc5
{[%clk 00:13:23]} {[%emt 00:01:59]} 18. Bf4 {[%clk 00:10:16]} {[%emt 00:01:31]}
g5 {[%clk 00:11:28]} {[%emt 00:02:05]} 19. Bxc7 {[%clk 00:08:38]} {[%emt
00:01:48]} Bxd5 {[%clk 00:11:01]} {[%emt 00:00:37]} 20. cxd5 {[%clk 00:08:45]}
{[%emt 00:00:03]} Rac8 {[%clk 00:10:57]} {[%emt 00:00:14]} 21. d6 {[%clk
00:08:41]} {[%emt 00:00:14]} Rce8 {[%clk 00:11:04]} {[%emt 00:00:03]} 22. Nc3
{[%clk 00:08:04]} {[%emt 00:00:47]} Ne5 {[%clk 00:11:08]} {[%emt 00:00:07]} 23.
Rad1 {[%clk 00:06:34]} {[%emt 00:01:40]} Re6 {[%clk 00:07:28]} {[%emt
00:03:50]} 24. Kg2 {[%clk 00:05:58]} {[%emt 00:00:46]} Ng4 {[%clk 00:06:46]}
{[%emt 00:00:52]} 25. Rd2 {[%clk 00:05:24]} {[%emt 00:00:44]} Be3 {[%clk
00:03:39]} {[%emt 00:03:17]} 26. Re2 {[%clk 00:04:01]} {[%emt 00:01:33]} Ref6
{[%clk 00:03:41]} {[%emt 00:00:08]} 27. f3 {[%clk 00:03:50]} {[%emt 00:00:21]}
Bd4 {[%clk 00:03:34]} {[%emt 00:00:16]} 28. Nd5 {[%clk 00:03:37]} {[%emt
00:00:24]} R6f7 {[%clk 00:03:38]} {[%emt 00:00:06]} 29. Re7 {[%clk 00:03:33]}
{[%emt 00:00:13]} Ne5 {[%clk 00:03:07]} {[%emt 00:00:41]} 30. Rxf7 {[%clk
00:02:39]} {[%emt 00:01:04]} Kxf7 {[%clk 00:02:43]} {[%emt 00:00:35]} 31. f4
{[%clk 00:02:03]} {[%emt 00:00:46]} Ke6 {[%clk 00:02:41]} {[%emt 00:00:11]} 32.
Ne7 {[%clk 00:02:11]} {[%emt 00:00:02]} gxf4 {[%clk 00:02:20]} {[%emt
00:00:32]} 33. gxf4 {[%clk 00:02:20]} {[%emt 00:00:01]} Ng4 {[%clk 00:01:16]}
{[%emt 00:01:14]} 34. f5+ {[%clk 00:02:27]} {[%emt 00:00:02]} Kf7 {[%clk
00:01:06]} {[%emt 00:00:21]} 35. Rf4 {[%clk 00:02:16]} {[%emt 00:00:21]} Ne3+
{[%clk 00:01:04]} {[%emt 00:00:12]} 36. Kf3 {[%clk 00:02:24]} {[%emt 00:00:02]}
Nc2 {[%clk 00:00:45]} {[%emt 00:00:29]} 37. Kg4 {[%clk 00:01:35]} {[%emt
00:00:59]} h5+ {[%clk 00:00:38]} {[%emt 00:00:17]} 38. Kf3 {[%clk 00:01:15]}
{[%emt 00:00:30]} Bxb2 {[%clk 00:00:26]} {[%emt 00:00:22]} 39. Ra4 {[%clk
00:00:49]} {[%emt 00:00:37]} Nd4+ {[%clk 00:00:27]} {[%emt 00:00:10]} 40. Ke4
{[%clk 00:00:47]} {[%emt 00:00:11]} Nb5 {[%clk 00:00:17]} {[%emt 00:00:20]} 41.
Rb4 {[%clk 00:00:38]} {[%emt 00:00:19]} Nc3+ {[%clk 00:00:15]} {[%emt
00:00:12]} 42. Kd3 {[%clk 00:00:44]} {[%emt 00:00:04]} Ba1 {[%clk 00:00:24]}
{[%emt 00:00:01]} 43. Rb3 {[%clk 00:00:29]} {[%emt 00:00:25]} Na4 {[%clk
00:00:32]} {[%emt 00:00:02]} 44. Ra3 {[%clk 00:00:31]} {[%emt 00:00:08]} Nc5+
{[%clk 00:00:38]} {[%emt 00:00:04]} 45. Kc4 {[%clk 00:00:34]} {[%emt 00:00:06]}
1/2-1/2

[Event "Skol-SM 2021, grupp A"]
[Site "Helsingborg Arena, Mellersta Stenbocksgatan 14, Helsingborg, Sweden"]
[Date "2021.10.10"]
[Round "7.3"]
[White "Troberg Eskola, Love"]
[Black "Kochetkov, Maxim"]
[Result "1-0"]
[TimeControl "45 minutes + 10 seconds per move from move one."]
[WhiteFideId "1724185"]
[BlackFideId "1768565"]
[WhiteElo "2007"]
[BlackElo "1360"]

1. Nf3 {[%clk 00:45:17]} {[%emt 00:00:02]} Nf6 {[%clk 00:45:12]} {[%emt
00:00:09]} 2. c4 {[%clk 00:45:07]} {[%emt 00:00:20]} g6 {[%clk 00:45:13]}
{[%emt 00:00:09]} 3. Nc3 {[%clk 00:45:11]} {[%emt 00:00:06]} Bg7 {[%clk
00:45:16]} {[%emt 00:00:07]} 4. e4 {[%clk 00:45:14]} {[%emt 00:00:06]} d6
{[%clk 00:45:17]} {[%emt 00:00:09]} 5. d4 {[%clk 00:45:18]} {[%emt 00:00:06]}
O-O {[%clk 00:45:19]} {[%emt 00:00:09]} 6. Be2 {[%clk 00:45:24]} {[%emt
00:00:03]} e5 {[%clk 00:45:20]} {[%emt 00:00:10]} 7. dxe5 {[%clk 00:45:26]}
{[%emt 00:00:08]} dxe5 {[%clk 00:45:11]} {[%emt 00:00:19]} 8. Qxd8 {[%clk
00:45:29]} {[%emt 00:00:06]} Rxd8 {[%clk 00:45:10]} {[%emt 00:00:11]} 9. Bg5
{[%clk 00:45:26]} {[%emt 00:00:12]} Re8 {[%clk 00:42:00]} {[%emt 00:03:21]} 10.
Nd5 {[%clk 00:45:25]} {[%emt 00:00:10]} Nxd5 {[%clk 00:41:34]} {[%emt
00:00:36]} 11. cxd5 {[%clk 00:45:28]} {[%emt 00:00:07]} f5 {[%clk 00:37:13]}
{[%emt 00:04:31]} 12. Rc1 {[%clk 00:44:18]} {[%emt 00:01:19]} h6 {[%clk
00:34:51]} {[%emt 00:02:32]} 13. Be3 {[%clk 00:43:53]} {[%emt 00:00:35]} c6
{[%clk 00:29:41]} {[%emt 00:05:21]} 14. Bc4 {[%clk 00:43:28]} {[%emt 00:00:35]}
Kh7 {[%clk 00:28:04]} {[%emt 00:01:47]} 15. h4 {[%clk 00:36:49]} {[%emt
00:06:48]} fxe4 {[%clk 00:23:36]} {[%emt 00:04:38]} 16. Ng5+ {[%clk 00:24:59]}
{[%emt 00:12:00]} Kh8 {[%clk 00:14:17]} {[%emt 00:09:29]} 17. Nxe4 {[%clk
00:21:51]} {[%emt 00:03:18]} Rd8 {[%clk 00:10:57]} {[%emt 00:03:30]} 18. Rd1
{[%clk 00:09:36]} {[%emt 00:12:25]} Bf5 {[%clk 00:10:00]} {[%emt 00:01:07]} 19.
Ng5 {[%clk 00:05:48]} {[%emt 00:03:58]} Rd7 {[%clk 00:05:56]} {[%emt 00:04:15]}
20. f3 {[%clk 00:04:54]} {[%emt 00:01:04]} cxd5 {[%clk 00:04:37]} {[%emt
00:01:29]} 21. Bxd5 {[%clk 00:04:54]} {[%emt 00:00:10]} Nc6 {[%clk 00:03:44]}
{[%emt 00:01:03]} 22. Bxc6 {[%clk 00:03:40]} {[%emt 00:01:25]} Rxd1+ {[%clk
00:03:19]} {[%emt 00:00:35]} 23. Kxd1 {[%clk 00:03:48]} {[%emt 00:00:01]} bxc6
{[%clk 00:03:27]} {[%emt 00:00:02]} 24. Ne4 {[%clk 00:02:57]} {[%emt 00:01:00]}
Bxe4 {[%clk 00:02:28]} {[%emt 00:01:09]} 25. fxe4 {[%clk 00:03:07]} Rb8 {[%clk
00:02:22]} {[%emt 00:00:16]} 26. Kc2 {[%clk 00:03:16]} {[%emt 00:00:01]} Rb4
{[%clk 00:01:40]} {[%emt 00:00:52]} 27. Bxa7 {[%clk 00:03:09]} {[%emt
00:00:16]} Rxe4 {[%clk 00:01:17]} {[%emt 00:00:32]} 28. g3 {[%clk 00:02:01]}
{[%emt 00:01:19]} Rg4 {[%clk 00:00:52]} {[%emt 00:00:35]} 29. Bf2 {[%clk
00:02:04]} {[%emt 00:00:07]} Kg8 {[%clk 00:00:35]} {[%emt 00:00:27]} 30. Rd1
{[%clk 00:02:07]} {[%emt 00:00:07]} Bf8 {[%clk 00:00:18]} {[%emt 00:00:27]} 31.
Rd7 {[%clk 00:01:57]} {[%emt 00:00:20]} Re4 {[%clk 00:00:13]} {[%emt 00:00:15]}
32. Kd3 {[%clk 00:01:58]} {[%emt 00:00:09]} Ra4 {[%clk 00:00:15]} {[%emt
00:00:08]} 33. Ra7 {[%clk 00:01:43]} {[%emt 00:00:25]} Rxa7 {[%clk 00:00:15]}
{[%emt 00:00:11]} 34. Bxa7 {[%clk 00:01:53]} Kf7 {[%clk 00:00:22]} {[%emt
00:00:03]} 35. Bb8 {[%clk 00:01:56]} {[%emt 00:00:06]} Ke6 {[%clk 00:00:25]}
{[%emt 00:00:07]} 36. Ke4 {[%clk 00:02:05]} Bg7 {[%clk 00:00:17]} {[%emt
00:00:19]} 37. a4 {[%clk 00:02:00]} {[%emt 00:00:15]} Bf8 {[%clk 00:00:13]}
{[%emt 00:00:14]} 38. Bxe5 {[%clk 00:01:53]} {[%emt 00:00:17]} Bb4 {[%emt
00:00:12]} 39. Bc3 {[%clk 00:01:52]} {[%emt 00:00:09]} Bd6 {[%clk 00:00:16]}
{[%emt 00:00:07]} 40. Be1 {[%clk 00:01:52]} {[%emt 00:00:09]} Kd7 {[%clk
00:00:19]} {[%emt 00:00:08]} 41. g4 {[%clk 00:01:54]} {[%emt 00:00:07]} h5
{[%clk 00:00:13]} {[%emt 00:00:16]} 42. gxh5 {[%clk 00:02:02]} {[%emt
00:00:01]} gxh5 {[%clk 00:00:21]} {[%emt 00:00:02]} 43. Kf5 {[%clk 00:02:03]}
{[%emt 00:00:09]} Kc7 {[%clk 00:00:13]} {[%emt 00:00:19]} 44. Kg5 {[%clk
00:02:09]} {[%emt 00:00:04]} Kb6 {[%clk 00:00:12]} {[%emt 00:00:11]} 45. Kxh5
{[%clk 00:02:12]} {[%emt 00:00:07]} Be5 {[%clk 00:00:12]} {[%emt 00:00:10]} 46.
Bc3 {[%clk 00:02:02]} {[%emt 00:00:20]} Bf4 {[%clk 00:00:19]} {[%emt 00:00:03]}
47. Kg6 {[%clk 00:02:04]} {[%emt 00:00:07]} Kc5 {[%clk 00:00:25]} {[%emt
00:00:04]} 48. h5 {[%clk 00:02:08]} {[%emt 00:00:06]} Kc4 {[%clk 00:00:12]}
{[%emt 00:00:23]} 49. a5 {[%clk 00:02:14]} {[%emt 00:00:04]} Kb5 {[%clk
00:00:15]} {[%emt 00:00:07]} 50. h6 {[%clk 00:02:22]} {[%emt 00:00:02]} Bxh6
{[%clk 00:00:19]} {[%emt 00:00:07]} 51. Kxh6 {[%clk 00:02:31]} {[%emt
00:00:01]} Ka6 {[%clk 00:00:21]} {[%emt 00:00:08]} 52. Kg6 {[%clk 00:02:39]}
{[%emt 00:00:01]} Kb5 {[%clk 00:00:30]} {[%emt 00:00:01]} 53. Kf5 {[%clk
00:02:48]} {[%emt 00:00:01]} Ka6 {[%clk 00:00:39]} 54. Ke5 {[%clk 00:02:57]}
1-0

[Event "Skol-SM 2021, grupp A"]
[Site "Helsingborg Arena, Mellersta Stenbocksgatan 14, Helsingborg, Sweden"]
[Date "2021.10.10"]
[Round "8.6"]
[White "Kochetkov, Maxim"]
[Black "Erhagen, Elliot"]
[Result "0-1"]
[TimeControl "45 minutes + 10 seconds per move from move one."]
[WhiteFideId "1768565"]
[BlackFideId "1764241"]
[WhiteElo "1360"]
[BlackElo "1110"]

1. d4 {[%clk 00:45:14]} Nf6 {[%clk 00:44:48]} 2. Bf4 {[%clk 00:45:20]} {[%emt
02:22:28]} d5 {[%clk 00:45:14]} {[%emt 00:00:12]} 3. e3 {[%clk 00:45:27]}
{[%emt 00:00:05]} c5 {[%clk 00:45:18]} {[%emt 00:00:06]} 4. c3 {[%clk
00:45:34]} {[%emt 00:00:04]} Nc6 {[%clk 00:45:19]} {[%emt 00:00:09]} 5. Nd2
{[%clk 00:45:39]} {[%emt 00:00:06]} Bf5 {[%clk 00:44:09]} {[%emt 00:01:13]} 6.
Ngf3 {[%clk 00:44:12]} {[%emt 00:01:44]} h6 {[%clk 00:44:06]} {[%emt 00:00:12]}
7. h3 {[%clk 00:43:45]} {[%emt 00:00:38]} e6 {[%clk 00:43:59]} {[%emt
00:00:16]} 8. Qb3 {[%clk 00:34:50]} {[%emt 00:09:05]} Qb6 {[%clk 00:42:36]}
{[%emt 00:01:32]} 9. Qxb6 {[%clk 00:33:42]} {[%emt 00:01:19]} axb6 {[%clk
00:42:43]} {[%emt 00:00:03]} 10. Bc7 {[%clk 00:33:41]} {[%emt 00:00:12]} Rc8
{[%clk 00:39:39]} {[%emt 00:03:12]} 11. Bxb6 {[%clk 00:33:19]} {[%emt
00:00:33]} Nd7 {[%clk 00:39:46]} {[%emt 00:00:03]} 12. dxc5 {[%clk 00:27:59]}
{[%emt 00:05:31]} Nxc5 {[%clk 00:39:23]} {[%emt 00:00:30]} 13. Bxc5 {[%clk
00:27:34]} {[%emt 00:00:38]} Bxc5 {[%clk 00:39:28]} {[%emt 00:00:03]} 14. Nb3
{[%clk 00:25:55]} {[%emt 00:01:51]} Be7 {[%clk 00:36:14]} {[%emt 00:03:22]} 15.
Nbd4 {[%clk 00:25:14]} {[%emt 00:00:52]} Be4 {[%clk 00:31:56]} {[%emt
00:04:25]} 16. Bb5 {[%clk 00:22:21]} {[%emt 00:03:07]} O-O {[%clk 00:31:09]}
{[%emt 00:00:56]} 17. O-O {[%clk 00:21:09]} {[%emt 00:01:23]} Bxf3 {[%clk
00:27:18]} {[%emt 00:03:59]} 18. Nxf3 {[%clk 00:20:55]} {[%emt 00:00:25]} Na5
{[%clk 00:27:13]} {[%emt 00:00:15]} 19. Rfd1 {[%clk 00:17:17]} {[%emt
00:03:49]} Bf6 {[%clk 00:24:43]} {[%emt 00:02:40]} 20. Nd4 {[%clk 00:14:49]}
{[%emt 00:02:38]} Bxd4 {[%clk 00:18:11]} {[%emt 00:06:42]} 21. exd4 {[%clk
00:14:35]} {[%emt 00:00:25]} Nc4 {[%clk 00:18:02]} {[%emt 00:00:18]} 22. Rab1
{[%clk 00:10:34]} {[%emt 00:04:11]} Ra8 {[%clk 00:17:39]} {[%emt 00:00:32]} 23.
a3 {[%clk 00:09:41]} {[%emt 00:01:04]} Rfc8 {[%clk 00:14:33]} {[%emt 00:03:15]}
24. Kf1 {[%clk 00:09:06]} {[%emt 00:00:46]} Ra5 {[%clk 00:12:39]} {[%emt
00:02:04]} 25. Bxc4 {[%clk 00:09:13]} {[%emt 00:00:03]} Rxc4 {[%clk 00:12:25]}
{[%emt 00:00:23]} 26. f3 {[%clk 00:08:57]} {[%emt 00:00:27]} Rc6 {[%clk
00:10:29]} {[%emt 00:02:05]} 27. Re1 {[%clk 00:08:45]} {[%emt 00:00:22]} Rb5
{[%clk 00:10:03]} {[%emt 00:00:36]} 28. Re2 {[%clk 00:08:45]} {[%emt 00:00:10]}
Rxc3 {[%clk 00:10:03]} {[%emt 00:00:10]} 29. bxc3 {[%clk 00:07:18]} {[%emt
00:01:37]} Rxb1+ {[%clk 00:10:11]} {[%emt 00:00:02]} 30. Kf2 {[%clk 00:06:38]}
{[%emt 00:00:49]} Rb3 {[%clk 00:10:18]} {[%emt 00:00:02]} 31. Rc2 {[%clk
00:06:36]} {[%emt 00:00:14]} Rxa3 {[%clk 00:10:15]} {[%emt 00:00:13]} 32. Ke3
{[%clk 00:06:39]} {[%emt 00:00:07]} g5 {[%clk 00:08:50]} {[%emt 00:01:34]} 33.
Kd3 {[%clk 00:06:21]} {[%emt 00:00:29]} Rb3 {[%clk 00:08:26]} {[%emt 00:00:33]}
34. Ra2 {[%clk 00:05:41]} {[%emt 00:00:50]} Kg7 {[%clk 00:07:32]} {[%emt
00:01:05]} 35. g4 {[%clk 00:05:32]} {[%emt 00:00:20]} Rb6 {[%clk 00:06:58]}
{[%emt 00:00:44]} 36. Ra8 {[%clk 00:05:21]} {[%emt 00:00:20]} Rb2 {[%clk
00:06:07]} {[%emt 00:01:01]} 37. Rb8 {[%clk 00:05:10]} {[%emt 00:00:21]} Rh2
{[%clk 00:05:42]} {[%emt 00:00:34]} 38. Rxb7 {[%clk 00:05:07]} {[%emt
00:00:14]} Rxh3 {[%clk 00:05:50]} {[%emt 00:00:02]} 39. Ke3 {[%clk 00:05:10]}
{[%emt 00:00:07]} h5 {[%clk 00:05:47]} {[%emt 00:00:12]} 40. gxh5 {[%clk
00:05:06]} {[%emt 00:00:15]} Rxh5 {[%clk 00:05:48]} {[%emt 00:00:08]} 41. Kf2
{[%clk 00:04:42]} {[%emt 00:00:34]} Rh8 {[%clk 00:05:12]} {[%emt 00:00:46]} 42.
Rc7 {[%clk 00:04:30]} {[%emt 00:00:23]} Re8 {[%clk 00:05:05]} {[%emt 00:00:17]}
43. Kg3 {[%clk 00:04:16]} {[%emt 00:00:24]} Kg6 {[%clk 00:05:12]} {[%emt
00:00:03]} 44. Kg4 {[%clk 00:04:09]} {[%emt 00:00:17]} f5+ {[%clk 00:04:43]}
{[%emt 00:00:39]} 45. Kg3 {[%clk 00:04:11]} {[%emt 00:00:08]} Kf6 {[%clk
00:04:22]} {[%emt 00:00:31]} 46. Kf2 {[%clk 00:03:50]} {[%emt 00:00:31]} Rh8
{[%clk 00:04:24]} {[%emt 00:00:08]} 47. Kg2 {[%clk 00:03:16]} {[%emt 00:00:44]}
Rg8 {[%clk 00:04:18]} {[%emt 00:00:17]} 48. c4 {[%clk 00:02:02]} {[%emt
00:01:24]} dxc4 {[%clk 00:04:15]} {[%emt 00:00:12]} 49. Rxc4 {[%clk 00:02:10]}
{[%emt 00:00:02]} Rd8 {[%clk 00:03:56]} {[%emt 00:00:29]} 50. Kf2 {[%clk
00:01:47]} {[%emt 00:00:33]} Ke7 {[%clk 00:03:45]} {[%emt 00:00:21]} 51. Rc7+
{[%clk 00:01:17]} {[%emt 00:00:39]} Rd7 {[%clk 00:03:54]} {[%emt 00:00:01]} 52.
Rc4 {[%clk 00:01:19]} {[%emt 00:00:08]} Kd6 {[%clk 00:03:57]} {[%emt 00:00:07]}
53. Ke3 {[%clk 00:01:02]} {[%emt 00:00:27]} Rc7 {[%clk 00:04:05]} {[%emt
00:00:02]} 54. Ra4 {[%clk 00:00:56]} {[%emt 00:00:16]} Rc3+ {[%clk 00:04:01]}
{[%emt 00:00:14]} 55. Ke2 {[%clk 00:00:50]} {[%emt 00:00:17]} Kd5 {[%clk
00:04:06]} {[%emt 00:00:05]} 56. Ra8 {[%clk 00:00:22]} {[%emt 00:00:37]} Kxd4
{[%clk 00:03:52]} {[%emt 00:00:24]} 57. Rg8 {[%clk 00:00:30]} {[%emt 00:00:03]}
Rc2+ {[%clk 00:03:45]} {[%emt 00:00:17]} 58. Kf1 {[%clk 00:00:13]} {[%emt
00:00:27]} Ke3 {[%clk 00:03:47]} {[%emt 00:00:08]} 59. Ke1 {[%clk 00:00:11]}
{[%emt 00:00:12]} Rc1# {[%emt 00:00:07]} 0-1